[Event "Titled Tuesday Blitz August 08 Early 2023"]
[White "Kazakov, Mikhail"]
[Black "Bauman_Guy"]
[WhiteFideId "14102749"]
[WhiteElo "2447"]
[BlackElo "2805"]
[Result "0-1"]
[Round "1"]
[TimeControl "180+1"]
[Date "2023.08.08"]
[WhiteClock "0:00:02"]
[BlackClock "0:00:51"]
[Board "79"]

1. d4 {[%clk 0:03:00]}  Nf6 {[%clk 0:02:59]} 2. c4 {[%clk 0:02:59]}  e6 {[%clk 0:03:00]} 3. Nf3 {[%clk 0:02:58]}  d5 {[%clk 0:02:59]} 4. cxd5 {[%clk 0:02:55]}  exd5 {[%clk 0:02:59]} 5. Nc3 {[%clk 0:02:55]}  c6 {[%clk 0:02:59]} 6. Bg5 {[%clk 0:02:54]}  Be7 {[%clk 0:02:56]} 7. e3 {[%clk 0:02:54]}  Bf5 {[%clk 0:02:56]} 8. Bd3 {[%clk 0:02:51]}  Bxd3 {[%clk 0:02:56]} 9. Qxd3 {[%clk 0:02:52]}  Nbd7 {[%clk 0:02:56]} 10. O-O {[%clk 0:02:51]}  O-O {[%clk 0:02:56]} 11. Rab1 {[%clk 0:02:51]}  a5 {[%clk 0:02:56]} 12. a3 {[%clk 0:02:48]}  a4 {[%clk 0:02:56]} 13. Qc2 {[%clk 0:02:42]}  Qa5 {[%clk 0:02:56]} 14. Ne5 {[%clk 0:02:28]}  Rfe8 {[%clk 0:02:51]} 15. f4 {[%clk 0:02:27]}  Nb6 {[%clk 0:02:43]} 16. Rf3 {[%clk 0:02:16]}  h6 {[%clk 0:02:26]} 17. Rh3 {[%clk 0:01:55]}  Nc4 {[%clk 0:01:56]} 18. Nxc4 {[%clk 0:01:09]}  dxc4 {[%clk 0:01:56]} 19. Bxf6 {[%clk 0:01:09]}  Bxf6 {[%clk 0:01:55]} 20. Ne4 {[%clk 0:00:58]}  Be7 {[%clk 0:01:35]} 21. Qxc4 {[%clk 0:00:51]}  Qf5 {[%clk 0:01:35]} 22. Nc3 {[%clk 0:00:46]}  Bf6 {[%clk 0:01:33]} 23. Rf1 {[%clk 0:00:35]}  Rad8 {[%clk 0:01:29]} 24. Qxa4 {[%clk 0:00:26]}  Qd3 {[%clk 0:01:28]} 25. Qd1 {[%clk 0:00:21]}  Qc4 {[%clk 0:01:22]} 26. Re1 {[%clk 0:00:16]}  c5 {[%clk 0:01:19]} 27. Qe2 {[%clk 0:00:14]}  Rxd4 {[%clk 0:01:08]} 28. Qxc4 {[%clk 0:00:12]}  Rxc4 {[%clk 0:01:09]} 29. Nd5 {[%clk 0:00:11]}  Bxb2 {[%clk 0:01:08]} 30. Rb1 {[%clk 0:00:09]}  Rc1+ {[%clk 0:01:01]} 31. Rxc1 {[%clk 0:00:08]}  Bxc1 {[%clk 0:01:02]} 32. Rf3 {[%clk 0:00:08]}  Bxa3 {[%clk 0:01:01]} 33. e4 {[%clk 0:00:07]}  Bb2 {[%clk 0:00:59]} 34. e5 {[%clk 0:00:06]}  b5 {[%clk 0:00:57]} 35. Kf1 {[%clk 0:00:04]}  c4 {[%clk 0:00:55]} 36. Nc7 {[%clk 0:00:03]}  Rb8 {[%clk 0:00:54]} 37. Ke2 {[%clk 0:00:03]}  c3 {[%clk 0:00:52]} 38. Kd1 {[%clk 0:00:03]}  b4 {[%clk 0:00:52]} 39. Na6 {[%clk 0:00:02]}  b3 {[%clk 0:00:51]} 40. Nxb8 {[%clk 0:00:02]}  c2+ {[%clk 0:00:51]} 41. Ke2 {[%clk 0:00:02]}  c1=Q {[%clk 0:00:51]} 0-1


[Site "https://www.chess.com"]

[Event "Titled Tuesday Blitz August 08 Early 2023"]
[White "Mikhailovsky, Vladimir"]
[Black "Mrudul Dehankar"]
[WhiteFideId "34105414"]
[BlackFideId "25096990"]
[WhiteElo "2804"]
[BlackElo "2447"]
[Result "1-0"]
[Round "1"]
[TimeControl "180+1"]
[Date "2023.08.08"]
[WhiteClock "0:01:13"]
[BlackClock "0:00:00"]
[Board "80"]

1. d4 {[%clk 0:02:55]}  Nf6 {[%clk 0:02:59]} 2. c4 {[%clk 0:02:55]}  e6 {[%clk 0:02:59]} 3. Nf3 {[%clk 0:02:55]}  Bb4+ {[%clk 0:02:59]} 4. Bd2 {[%clk 0:02:55]}  c5 {[%clk 0:02:58]} 5. Bxb4 {[%clk 0:02:42]}  cxb4 {[%clk 0:02:57]} 6. Nbd2 {[%clk 0:02:42]}  O-O {[%clk 0:02:56]} 7. e4 {[%clk 0:02:39]}  d6 {[%clk 0:02:56]} 8. Bd3 {[%clk 0:02:22]}  Nc6 {[%clk 0:02:55]} 9. O-O {[%clk 0:02:22]}  Qb6 {[%clk 0:02:13]} 10. e5 {[%clk 0:01:51]}  dxe5 {[%clk 0:00:49]} 11. dxe5 {[%clk 0:01:50]}  Rd8 {[%clk 0:00:47]} 12. Qc2 {[%clk 0:01:27]}  Nd4 {[%clk 0:00:39]} 13. Nxd4 {[%clk 0:01:27]}  Qxd4 {[%clk 0:00:39]} 14. Nf3 {[%clk 0:01:28]}  Qxd3 {[%clk 0:00:37]} 15. Rad1 {[%clk 0:01:27]}  Qxd1 {[%clk 0:00:17]} 16. Rxd1 {[%clk 0:01:26]}  Nd7 {[%clk 0:00:16]} 17. Ng5 {[%clk 0:01:21]}  g6 {[%clk 0:00:16]} 18. Ne4 {[%clk 0:01:22]}  Kg7 {[%clk 0:00:12]} 19. Qd2 {[%clk 0:01:18]}  Rf8 {[%clk 0:00:05]} 20. Qf4 {[%clk 0:01:15]}  h6 {[%clk 0:00:00]} 21. h4 {[%clk 0:01:13]} 1-0


[Site "https://www.chess.com"]

[Event "Titled Tuesday Blitz August 08 Early 2023"]
[White "Christiansen, Johan-Sebastian"]
[Black "Karas, Marek"]
[WhiteFideId "1512668"]
[BlackFideId "14928558"]
[WhiteElo "2802"]
[BlackElo "2444"]
[Result "1-0"]
[Round "1"]
[TimeControl "180+1"]
[Date "2023.08.08"]
[WhiteClock "0:00:22"]
[BlackClock "0:00:00"]
[Board "82"]

1. e4 {[%clk 0:03:00]}  e6 {[%clk 0:02:56]} 2. Nf3 {[%clk 0:02:59]}  d5 {[%clk 0:02:55]} 3. e5 {[%clk 0:02:59]}  c5 {[%clk 0:02:54]} 4. b4 {[%clk 0:03:00]}  c4 {[%clk 0:02:46]} 5. a3 {[%clk 0:03:00]}  a5 {[%clk 0:02:42]} 6. b5 {[%clk 0:03:00]}  Nd7 {[%clk 0:02:39]} 7. d4 {[%clk 0:02:58]}  cxd3 {[%clk 0:02:37]} 8. cxd3 {[%clk 0:02:54]}  Ne7 {[%clk 0:02:33]} 9. d4 {[%clk 0:02:54]}  Nf5 {[%clk 0:02:30]} 10. Bd3 {[%clk 0:02:52]}  Nb6 {[%clk 0:02:21]} 11. O-O {[%clk 0:02:45]}  Be7 {[%clk 0:02:14]} 12. Nc3 {[%clk 0:02:41]}  O-O {[%clk 0:02:05]} 13. Ne2 {[%clk 0:02:27]}  Bd7 {[%clk 0:01:46]} 14. a4 {[%clk 0:02:22]}  Rc8 {[%clk 0:01:17]} 15. Kh1 {[%clk 0:02:22]}  Bb4 {[%clk 0:01:12]} 16. Ng3 {[%clk 0:02:00]}  Nxg3+ {[%clk 0:00:56]} 17. fxg3 {[%clk 0:01:59]}  h6 {[%clk 0:00:49]} 18. g4 {[%clk 0:01:53]}  f6 {[%clk 0:00:37]} 19. Bf4 {[%clk 0:01:40]}  Be7 {[%clk 0:00:33]} 20. Bg3 {[%clk 0:01:40]}  f5 {[%clk 0:00:28]} 21. gxf5 {[%clk 0:01:39]}  exf5 {[%clk 0:00:29]} 22. Qd2 {[%clk 0:01:33]}  Nc4 {[%clk 0:00:24]} 23. Qe2 {[%clk 0:01:33]}  Be6 {[%clk 0:00:23]} 24. Nd2 {[%clk 0:01:29]}  Nxd2 {[%clk 0:00:20]} 25. Qxd2 {[%clk 0:01:30]}  Bb4 {[%clk 0:00:17]} 26. Qe3 {[%clk 0:01:17]}  Rc3 {[%clk 0:00:16]} 27. Qe2 {[%clk 0:01:13]}  Qe7 {[%clk 0:00:14]} 28. Bf4 {[%clk 0:01:09]}  Rfc8 {[%clk 0:00:11]} 29. h3 {[%clk 0:01:07]}  Rf8 {[%clk 0:00:11]} 30. Rad1 {[%clk 0:01:07]}  Rc7 {[%clk 0:00:10]} 31. Qh5 {[%clk 0:01:06]}  Qf7 {[%clk 0:00:09]} 32. Qe2 {[%clk 0:01:06]}  Qg6 {[%clk 0:00:08]} 33. Bh2 {[%clk 0:01:05]}  Rcf7 {[%clk 0:00:08]} 34. Rf3 {[%clk 0:01:03]}  Rc7 {[%clk 0:00:07]} 35. Rdf1 {[%clk 0:01:03]}  Qg5 {[%clk 0:00:07]} 36. Rg3 {[%clk 0:00:53]}  Qe7 {[%clk 0:00:07]} 37. Rg6 {[%clk 0:00:53]}  Kh7 {[%clk 0:00:05]} 38. Qh5 {[%clk 0:00:51]}  Qf7 {[%clk 0:00:02]} 39. Rg5 {[%clk 0:00:26]}  Qxh5 {[%clk 0:00:02]} 40. Rxh5 {[%clk 0:00:27]}  g6 {[%clk 0:00:02]} 41. Rh4 {[%clk 0:00:27]}  Kg7 {[%clk 0:00:02]} 42. Rhf4 {[%clk 0:00:26]}  g5 {[%clk 0:00:02]} 43. R4f3 {[%clk 0:00:23]}  f4 {[%clk 0:00:02]} 44. g3 {[%clk 0:00:24]}  Rcf7 {[%clk 0:00:01]} 45. gxf4 {[%clk 0:00:24]}  g4 {[%clk 0:00:01]} 46. hxg4 {[%clk 0:00:22]}  Bxg4 {[%clk 0:00:02]} 47. Rg3 {[%clk 0:00:22]}  h5 {[%clk 0:00:02]} 48. f5 {[%clk 0:00:23]}  Kh6 {[%clk 0:00:03]} 49. f6 {[%clk 0:00:23]}  Be6 {[%clk 0:00:00]} 50. Rg6+ {[%clk 0:00:22]} 1-0


[Site "https://www.chess.com"]

[Event "Titled Tuesday Blitz August 08 Early 2023"]
[White "Rietze, Clemens, Dr."]
[Black "Kosteniuk, Alexandra"]
[WhiteFideId "24620351"]
[BlackFideId "4128125"]
[WhiteElo "2435"]
[BlackElo "2788"]
[Result "1/2-1/2"]
[Round "1"]
[TimeControl "180+1"]
[Date "2023.08.08"]
[WhiteClock "0:00:06"]
[BlackClock "0:00:06"]
[Board "87"]

1. d4 {[%clk 0:02:57]}  d5 {[%clk 0:02:58]} 2. c4 {[%clk 0:02:56]}  e6 {[%clk 0:02:59]} 3. Nf3 {[%clk 0:02:57]}  c6 {[%clk 0:02:58]} 4. e3 {[%clk 0:02:55]}  f5 {[%clk 0:02:57]} 5. Nc3 {[%clk 0:02:55]}  Nf6 {[%clk 0:02:58]} 6. Bd3 {[%clk 0:02:54]}  Be7 {[%clk 0:02:55]} 7. O-O {[%clk 0:02:54]}  O-O {[%clk 0:02:55]} 8. b3 {[%clk 0:02:54]}  Bd7 {[%clk 0:02:55]} 9. Bb2 {[%clk 0:02:53]}  Be8 {[%clk 0:02:55]} 10. Ne2 {[%clk 0:02:51]}  h6 {[%clk 0:02:45]} 11. Nf4 {[%clk 0:02:45]}  Qc8 {[%clk 0:02:42]} 12. Ne5 {[%clk 0:02:40]}  Kh7 {[%clk 0:02:37]} 13. g4 {[%clk 0:02:32]}  g6 {[%clk 0:02:35]} 14. Kh1 {[%clk 0:02:09]}  Bd6 {[%clk 0:02:20]} 15. Qc2 {[%clk 0:01:37]}  Bxe5 {[%clk 0:01:00]} 16. dxe5 {[%clk 0:01:35]}  Nxg4 {[%clk 0:01:01]} 17. h3 {[%clk 0:01:35]}  Nxe5 {[%clk 0:01:00]} 18. Bxe5 {[%clk 0:01:34]}  Nd7 {[%clk 0:01:00]} 19. Qb2 {[%clk 0:01:12]}  Bf7 {[%clk 0:00:54]} 20. Rg1 {[%clk 0:01:07]}  Qd8 {[%clk 0:00:54]} 21. Rg3 {[%clk 0:00:57]}  Qh4 {[%clk 0:00:53]} 22. Rag1 {[%clk 0:00:47]}  Rg8 {[%clk 0:00:51]} 23. Kh2 {[%clk 0:00:38]}  Rae8 {[%clk 0:00:48]} 24. Ng2 {[%clk 0:00:31]}  Qe7 {[%clk 0:00:47]} 25. Nf4 {[%clk 0:00:28]}  g5 {[%clk 0:00:45]} 26. Ne2 {[%clk 0:00:26]}  Bg6 {[%clk 0:00:46]} 27. f4 {[%clk 0:00:19]}  Bh5 {[%clk 0:00:40]} 28. Nc1 {[%clk 0:00:13]}  Nc5 {[%clk 0:00:38]} 29. Bc2 {[%clk 0:00:11]}  Ne4 {[%clk 0:00:36]} 30. Bxe4 {[%clk 0:00:10]}  fxe4 {[%clk 0:00:37]} 31. Bf6 {[%clk 0:00:09]}  Qf7 {[%clk 0:00:35]} 32. fxg5 {[%clk 0:00:09]}  hxg5 {[%clk 0:00:34]} 33. Rxg5 {[%clk 0:00:09]}  Rxg5 {[%clk 0:00:33]} 34. Rxg5 {[%clk 0:00:10]}  Rg8 {[%clk 0:00:33]} 35. Qe5 {[%clk 0:00:09]}  Bg6 {[%clk 0:00:32]} 36. Ne2 {[%clk 0:00:08]}  Bf5 {[%clk 0:00:31]} 37. Ng3 {[%clk 0:00:08]}  Rxg5 {[%clk 0:00:30]} 38. Bxg5 {[%clk 0:00:09]}  Bg6 {[%clk 0:00:28]} 39. Bf4 {[%clk 0:00:09]}  dxc4 {[%clk 0:00:26]} 40. bxc4 {[%clk 0:00:08]}  Qd7 {[%clk 0:00:27]} 41. Qd4 {[%clk 0:00:08]}  Qxd4 {[%clk 0:00:23]} 42. exd4 {[%clk 0:00:09]}  b5 {[%clk 0:00:23]} 43. cxb5 {[%clk 0:00:08]}  cxb5 {[%clk 0:00:24]} 44. Ne2 {[%clk 0:00:07]}  b4 {[%clk 0:00:24]} 45. Bc7 {[%clk 0:00:05]}  Bh5 {[%clk 0:00:18]} 46. Nf4 {[%clk 0:00:04]}  Bd1 {[%clk 0:00:17]} 47. Kg1 {[%clk 0:00:03]}  b3 {[%clk 0:00:17]} 48. axb3 {[%clk 0:00:03]}  Bxb3 {[%clk 0:00:18]} 49. Kf2 {[%clk 0:00:03]}  Kh6 {[%clk 0:00:17]} 50. Ke3 {[%clk 0:00:04]}  Bd5 {[%clk 0:00:07]} 51. Bd8 {[%clk 0:00:04]}  a6 {[%clk 0:00:06]} 52. h4 {[%clk 0:00:03]}  Kg7 {[%clk 0:00:06]} 53. Bc7 {[%clk 0:00:01]}  Kh6 {[%clk 0:00:06]} 54. Bd8 {[%clk 0:00:01]}  Kg7 {[%clk 0:00:06]} 55. Ne2 {[%clk 0:00:02]}  Kh6 {[%clk 0:00:06]} 56. Bg5+ {[%clk 0:00:02]}  Kh5 {[%clk 0:00:06]} 57. Nc3 {[%clk 0:00:03]}  a5 {[%clk 0:00:06]} 58. Na4 {[%clk 0:00:03]}  Bc6 {[%clk 0:00:06]} 59. Nc5 {[%clk 0:00:03]}  a4 {[%clk 0:00:07]} 60. Kd2 {[%clk 0:00:03]}  a3 {[%clk 0:00:07]} 61. Kc3 {[%clk 0:00:04]}  Kg4 {[%clk 0:00:06]} 62. Kb3 {[%clk 0:00:04]}  Kf3 {[%clk 0:00:06]} 63. Kxa3 {[%clk 0:00:04]}  e3 {[%clk 0:00:07]} 64. Bxe3 {[%clk 0:00:04]}  Kxe3 {[%clk 0:00:07]} 65. Nxe6 {[%clk 0:00:04]}  Bd5 {[%clk 0:00:04]} 66. Ng5 {[%clk 0:00:04]}  Kxd4 {[%clk 0:00:05]} 67. Kb4 {[%clk 0:00:04]}  Ke5 {[%clk 0:00:05]} 68. h5 {[%clk 0:00:05]}  Kf6 {[%clk 0:00:05]} 69. Nh3 {[%clk 0:00:05]}  Kg7 {[%clk 0:00:05]} 70. Nf4 {[%clk 0:00:05]}  Bf3 {[%clk 0:00:05]} 71. Kc5 {[%clk 0:00:06]}  Bxh5 {[%clk 0:00:06]} 1/2-1/2


[Site "https://www.chess.com"]

[Event "Titled Tuesday Blitz August 08 Early 2023"]
[White "Fantastic_Power"]
[Black "Sliwicki, Damian"]
[BlackFideId "1127128"]
[WhiteElo "2787"]
[BlackElo "2434"]
[Result "1-0"]
[Round "1"]
[TimeControl "180+1"]
[Date "2023.08.08"]
[WhiteClock "0:00:09"]
[BlackClock "0:00:03"]
[Board "88"]

1. e4 {[%clk 0:03:00]}  c5 {[%clk 0:02:04]} 2. Nf3 {[%clk 0:02:56]}  g6 {[%clk 0:02:03]} 3. Nc3 {[%clk 0:02:55]}  Bg7 {[%clk 0:02:03]} 4. d4 {[%clk 0:02:50]}  cxd4 {[%clk 0:02:04]} 5. Nxd4 {[%clk 0:02:51]}  Nc6 {[%clk 0:02:04]} 6. Be3 {[%clk 0:02:51]}  Nf6 {[%clk 0:02:04]} 7. Nxc6 {[%clk 0:02:51]}  bxc6 {[%clk 0:02:04]} 8. e5 {[%clk 0:02:51]}  Ng8 {[%clk 0:02:01]} 9. Bd4 {[%clk 0:02:48]}  Qc7 {[%clk 0:01:59]} 10. f4 {[%clk 0:02:34]}  Nh6 {[%clk 0:01:56]} 11. Qe2 {[%clk 0:02:29]}  O-O {[%clk 0:01:55]} 12. Ne4 {[%clk 0:02:29]}  d6 {[%clk 0:01:50]} 13. Nf2 {[%clk 0:01:58]}  c5 {[%clk 0:01:41]} 14. Bc3 {[%clk 0:01:55]}  d5 {[%clk 0:01:41]} 15. Bd2 {[%clk 0:01:41]}  Rb8 {[%clk 0:01:38]} 16. b3 {[%clk 0:01:40]}  f6 {[%clk 0:01:29]} 17. O-O-O {[%clk 0:01:27]}  fxe5 {[%clk 0:01:19]} 18. fxe5 {[%clk 0:01:28]}  Rxf2 {[%clk 0:01:08]} 19. Qxf2 {[%clk 0:01:28]}  Qxe5 {[%clk 0:01:07]} 20. c3 {[%clk 0:01:28]}  Bf5 {[%clk 0:01:02]} 21. Qf4 {[%clk 0:01:17]}  Ng4 {[%clk 0:00:44]} 22. Be2 {[%clk 0:01:08]}  Qxf4 {[%clk 0:00:34]} 23. Bxf4 {[%clk 0:01:07]}  e5 {[%clk 0:00:35]} 24. Bg3 {[%clk 0:00:50]}  Ne3 {[%clk 0:00:28]} 25. Rd2 {[%clk 0:00:49]}  c4 {[%clk 0:00:23]} 26. Kb2 {[%clk 0:00:46]}  a5 {[%clk 0:00:16]} 27. Re1 {[%clk 0:00:39]}  Rb7 {[%clk 0:00:15]} 28. Bf3 {[%clk 0:00:36]}  e4 {[%clk 0:00:07]} 29. Rxe3 {[%clk 0:00:35]}  exf3 {[%clk 0:00:07]} 30. gxf3 {[%clk 0:00:36]}  a4 {[%clk 0:00:07]} 31. Re8+ {[%clk 0:00:25]}  Kf7 {[%clk 0:00:07]} 32. Rb8 {[%clk 0:00:26]}  Rxb8 {[%clk 0:00:06]} 33. Bxb8 {[%clk 0:00:27]}  axb3 {[%clk 0:00:06]} 34. axb3 {[%clk 0:00:27]}  cxb3 {[%clk 0:00:06]} 35. Rxd5 {[%clk 0:00:25]}  Ke6 {[%clk 0:00:07]} 36. Rd6+ {[%clk 0:00:25]}  Ke7 {[%clk 0:00:06]} 37. Kxb3 {[%clk 0:00:24]}  Be5 {[%clk 0:00:07]} 38. Rb6 {[%clk 0:00:23]}  Be6+ {[%clk 0:00:08]} 39. c4 {[%clk 0:00:21]}  Bd4 {[%clk 0:00:06]} 40. Rb7+ {[%clk 0:00:20]}  Kd8 {[%clk 0:00:07]} 41. Rxh7 {[%clk 0:00:18]}  g5 {[%clk 0:00:07]} 42. Bd6 {[%clk 0:00:15]}  g4 {[%clk 0:00:07]} 43. fxg4 {[%clk 0:00:15]}  Bxg4 {[%clk 0:00:08]} 44. Kb4 {[%clk 0:00:15]}  Bf6 {[%clk 0:00:07]} 45. c5 {[%clk 0:00:15]}  Bd7 {[%clk 0:00:07]} 46. Rf7 {[%clk 0:00:13]}  Bd4 {[%clk 0:00:07]} 47. Rf8+ {[%clk 0:00:12]}  Be8 {[%clk 0:00:07]} 48. c6 {[%clk 0:00:13]}  Be3 {[%clk 0:00:05]} 49. Kb5 {[%clk 0:00:12]}  Bh6 {[%clk 0:00:04]} 50. Kb6 {[%clk 0:00:11]}  Be3+ {[%clk 0:00:05]} 51. Kb7 {[%clk 0:00:11]}  Bb6 {[%clk 0:00:03]} 52. Kxb6 {[%clk 0:00:09]}  Kc8 {[%clk 0:00:03]} 53. Rxe8# {[%clk 0:00:09]} 1-0


[Site "https://www.chess.com"]

[Event "Titled Tuesday Blitz August 08 Early 2023"]
[White "Devaev, Alexander"]
[Black "Krzyzanowski, Marcin"]
[WhiteFideId "4169395"]
[BlackFideId "1132199"]
[WhiteElo "2432"]
[BlackElo "2785"]
[Result "0-1"]
[Round "1"]
[TimeControl "180+1"]
[Date "2023.08.08"]
[WhiteClock "0:00:02"]
[BlackClock "0:00:13"]
[Board "89"]

1. Nf3 {[%clk 0:02:55]}  Nf6 {[%clk 0:02:58]} 2. d4 {[%clk 0:02:54]}  e6 {[%clk 0:02:56]} 3. c4 {[%clk 0:02:55]}  c5 {[%clk 0:02:48]} 4. d5 {[%clk 0:02:54]}  exd5 {[%clk 0:02:44]} 5. cxd5 {[%clk 0:02:53]}  d6 {[%clk 0:02:44]} 6. Nc3 {[%clk 0:02:53]}  g6 {[%clk 0:02:43]} 7. e4 {[%clk 0:02:52]}  Bg7 {[%clk 0:02:40]} 8. h3 {[%clk 0:02:53]}  O-O {[%clk 0:02:39]} 9. Bd3 {[%clk 0:02:53]}  Re8 {[%clk 0:02:32]} 10. O-O {[%clk 0:02:53]}  a6 {[%clk 0:02:28]} 11. a4 {[%clk 0:02:52]}  Nh5 {[%clk 0:02:24]} 12. Re1 {[%clk 0:02:46]}  Nd7 {[%clk 0:02:19]} 13. Bg5 {[%clk 0:02:39]}  Bf6 {[%clk 0:02:18]} 14. Be3 {[%clk 0:02:38]}  Ne5 {[%clk 0:02:16]} 15. Be2 {[%clk 0:02:38]}  Nxf3+ {[%clk 0:02:07]} 16. Bxf3 {[%clk 0:02:38]}  Ng7 {[%clk 0:02:08]} 17. Qc2 {[%clk 0:02:26]}  Rb8 {[%clk 0:02:05]} 18. a5 {[%clk 0:02:21]}  b5 {[%clk 0:01:49]} 19. axb6 {[%clk 0:02:20]}  Rxb6 {[%clk 0:01:46]} 20. Ra2 {[%clk 0:02:20]}  Be5 {[%clk 0:01:45]} 21. Bh6 {[%clk 0:01:32]}  Qf6 {[%clk 0:01:24]} 22. Re3 {[%clk 0:01:15]}  Bd4 {[%clk 0:01:09]} 23. Rd3 {[%clk 0:01:07]}  Rb4 {[%clk 0:00:53]} 24. Qd2 {[%clk 0:01:06]}  Qe7 {[%clk 0:00:47]} 25. Bg5 {[%clk 0:01:06]}  f6 {[%clk 0:00:46]} 26. Be3 {[%clk 0:01:02]}  Be5 {[%clk 0:00:45]} 27. Qc2 {[%clk 0:00:59]}  f5 {[%clk 0:00:45]} 28. Rd1 {[%clk 0:00:54]}  g5 {[%clk 0:00:37]} 29. Ra4 {[%clk 0:00:36]}  g4 {[%clk 0:00:34]} 30. Be2 {[%clk 0:00:28]}  f4 {[%clk 0:00:32]} 31. Bc1 {[%clk 0:00:25]}  f3 {[%clk 0:00:31]} 32. Bf1 {[%clk 0:00:22]}  fxg2 {[%clk 0:00:30]} 33. Bxg2 {[%clk 0:00:23]}  gxh3 {[%clk 0:00:31]} 34. Bf1 {[%clk 0:00:19]}  h2+ {[%clk 0:00:28]} 35. Kh1 {[%clk 0:00:19]}  Bg4 {[%clk 0:00:24]} 36. Ne2 {[%clk 0:00:14]}  Rxa4 {[%clk 0:00:19]} 37. Qxa4 {[%clk 0:00:12]}  Bf3+ {[%clk 0:00:19]} 38. Bg2 {[%clk 0:00:12]}  Bxe2 {[%clk 0:00:19]} 39. Re1 {[%clk 0:00:12]}  Bb5 {[%clk 0:00:18]} 40. Qa5 {[%clk 0:00:12]}  Rf8 {[%clk 0:00:18]} 41. Qa3 {[%clk 0:00:07]}  Rxf2 {[%clk 0:00:17]} 42. Qh3 {[%clk 0:00:07]}  Qf6 {[%clk 0:00:16]} 43. Qc8+ {[%clk 0:00:07]}  Qf8 {[%clk 0:00:16]} 44. Qh3 {[%clk 0:00:08]}  Qf7 {[%clk 0:00:15]} 45. Bh6 {[%clk 0:00:08]}  Bd7 {[%clk 0:00:14]} 46. Qh4 {[%clk 0:00:07]}  Rf6 {[%clk 0:00:12]} 47. Bg5 {[%clk 0:00:08]}  Rg6 {[%clk 0:00:12]} 48. Be3 {[%clk 0:00:07]}  Qf6 {[%clk 0:00:13]} 49. Qxf6 {[%clk 0:00:06]}  Bxf6 {[%clk 0:00:13]} 50. Kxh2 {[%clk 0:00:07]}  Bxb2 {[%clk 0:00:13]} 51. Rb1 {[%clk 0:00:06]}  Be5+ {[%clk 0:00:13]} 52. Kh1 {[%clk 0:00:07]}  Bb5 {[%clk 0:00:14]} 53. Bh3 {[%clk 0:00:06]}  Rg3 {[%clk 0:00:13]} 54. Be6+ {[%clk 0:00:04]}  Nxe6 {[%clk 0:00:13]} 55. dxe6 {[%clk 0:00:02]}  Rxe3 {[%clk 0:00:13]} 0-1


[Site "https://www.chess.com"]

[Event "Titled Tuesday Blitz August 08 Early 2023"]
[White "Begunov, Konstantin"]
[Black "Srihari L R"]
[WhiteFideId "4118510"]
[BlackFideId "46617116"]
[WhiteElo "2427"]
[BlackElo "2770"]
[Result "0-1"]
[Round "1"]
[TimeControl "180+1"]
[Date "2023.08.08"]
[WhiteClock "0:00:09"]
[BlackClock "0:00:31"]
[Board "93"]

1. d4 {[%clk 0:02:56]}  Nf6 {[%clk 0:02:48]} 2. c4 {[%clk 0:02:56]}  b6 {[%clk 0:02:45]} 3. Nc3 {[%clk 0:02:54]}  Bb7 {[%clk 0:02:39]} 4. Bg5 {[%clk 0:02:53]}  g6 {[%clk 0:02:22]} 5. f3 {[%clk 0:02:50]}  Bg7 {[%clk 0:02:15]} 6. e4 {[%clk 0:02:50]}  d6 {[%clk 0:02:16]} 7. Qd2 {[%clk 0:02:50]}  h6 {[%clk 0:02:16]} 8. Be3 {[%clk 0:02:49]}  Nbd7 {[%clk 0:02:16]} 9. Bd3 {[%clk 0:02:49]}  e5 {[%clk 0:02:16]} 10. d5 {[%clk 0:02:49]}  Nh5 {[%clk 0:02:14]} 11. Nge2 {[%clk 0:02:48]}  Nc5 {[%clk 0:02:14]} 12. Bc2 {[%clk 0:02:46]}  a5 {[%clk 0:02:13]} 13. g4 {[%clk 0:02:43]}  Nf6 {[%clk 0:02:08]} 14. O-O-O {[%clk 0:02:34]}  h5 {[%clk 0:02:07]} 15. h3 {[%clk 0:02:31]}  Qe7 {[%clk 0:01:51]} 16. Bg5 {[%clk 0:02:28]}  O-O-O {[%clk 0:01:48]} 17. Ng3 {[%clk 0:02:28]}  h4 {[%clk 0:01:44]} 18. Nge2 {[%clk 0:02:18]}  Kb8 {[%clk 0:01:43]} 19. Kb1 {[%clk 0:02:16]}  Rdf8 {[%clk 0:01:40]} 20. Nc1 {[%clk 0:02:14]}  Qe8 {[%clk 0:01:39]} 21. Qf2 {[%clk 0:02:04]}  Nfd7 {[%clk 0:01:27]} 22. Bxh4 {[%clk 0:01:41]}  f5 {[%clk 0:01:27]} 23. Bg5 {[%clk 0:01:27]}  fxe4 {[%clk 0:01:24]} 24. Nxe4 {[%clk 0:01:26]}  Nxe4 {[%clk 0:01:24]} 25. Bxe4 {[%clk 0:01:25]}  Nc5 {[%clk 0:01:25]} 26. Qc2 {[%clk 0:01:08]}  Nxe4 {[%clk 0:01:24]} 27. fxe4 {[%clk 0:01:07]}  Bc8 {[%clk 0:01:22]} 28. Nd3 {[%clk 0:01:05]}  Rf3 {[%clk 0:01:21]} 29. Qg2 {[%clk 0:01:00]}  Rf7 {[%clk 0:01:16]} 30. Rdf1 {[%clk 0:00:58]}  Rxf1+ {[%clk 0:01:07]} 31. Rxf1 {[%clk 0:00:58]}  Ba6 {[%clk 0:01:07]} 32. b3 {[%clk 0:00:58]}  b5 {[%clk 0:01:06]} 33. Nb2 {[%clk 0:00:49]}  a4 {[%clk 0:01:00]} 34. Kc2 {[%clk 0:00:46]}  bxc4 {[%clk 0:00:59]} 35. Nxc4 {[%clk 0:00:45]}  axb3+ {[%clk 0:00:53]} 36. axb3 {[%clk 0:00:45]}  Bxc4 {[%clk 0:00:53]} 37. bxc4 {[%clk 0:00:44]}  Qa4+ {[%clk 0:00:53]} 38. Kb1 {[%clk 0:00:36]}  Qxc4 {[%clk 0:00:43]} 39. Qb2+ {[%clk 0:00:36]}  Kc8 {[%clk 0:00:39]} 40. Re1 {[%clk 0:00:16]}  Rxh3 {[%clk 0:00:38]} 41. Rc1 {[%clk 0:00:11]}  Qxe4+ {[%clk 0:00:37]} 42. Ka2 {[%clk 0:00:11]}  Qxd5+ {[%clk 0:00:35]} 43. Ka1 {[%clk 0:00:10]}  Rb3 {[%clk 0:00:32]} 44. Qc2 {[%clk 0:00:09]}  Qd4+ {[%clk 0:00:31]} 45. Ka2 {[%clk 0:00:09]}  Qa4# {[%clk 0:00:31]} 0-1


[Site "https://www.chess.com"]

[Event "Titled Tuesday Blitz August 08 Early 2023"]
[White "Mahdavi, Reza"]
[Black "WindWhistler11"]
[WhiteFideId "12595926"]
[WhiteElo "2766"]
[BlackElo "2427"]
[Result "0-1"]
[Round "1"]
[TimeControl "180+1"]
[Date "2023.08.08"]
[WhiteClock "0:00:20"]
[BlackClock "0:00:30"]
[Board "94"]

1. e4 {[%clk 0:02:41]}  e6 {[%clk 0:02:59]} 2. d4 {[%clk 0:02:36]}  d5 {[%clk 0:02:59]} 3. Nd2 {[%clk 0:02:36]}  Nc6 {[%clk 0:02:53]} 4. Ngf3 {[%clk 0:02:36]}  Nf6 {[%clk 0:02:53]} 5. e5 {[%clk 0:02:36]}  Nd7 {[%clk 0:02:54]} 6. Bd3 {[%clk 0:02:36]}  f6 {[%clk 0:02:53]} 7. exf6 {[%clk 0:02:37]}  Qxf6 {[%clk 0:02:53]} 8. Nf1 {[%clk 0:02:24]}  Bd6 {[%clk 0:02:52]} 9. Ne3 {[%clk 0:02:24]}  Qf7 {[%clk 0:02:46]} 10. O-O {[%clk 0:02:21]}  h6 {[%clk 0:02:41]} 11. c3 {[%clk 0:02:07]}  e5 {[%clk 0:02:20]} 12. dxe5 {[%clk 0:01:59]}  Ndxe5 {[%clk 0:02:19]} 13. Nxe5 {[%clk 0:01:59]}  Nxe5 {[%clk 0:02:17]} 14. Nxd5 {[%clk 0:01:59]}  Bg4 {[%clk 0:02:07]} 15. Qa4+ {[%clk 0:01:43]}  Bd7 {[%clk 0:01:58]} 16. Qe4 {[%clk 0:01:35]}  O-O-O {[%clk 0:01:49]} 17. Bc2 {[%clk 0:01:13]}  Kb8 {[%clk 0:01:30]} 18. Ne3 {[%clk 0:00:59]}  Bc6 {[%clk 0:01:27]} 19. Qf5 {[%clk 0:00:28]}  Qe7 {[%clk 0:01:28]} 20. Qh3 {[%clk 0:00:28]}  Rhf8 {[%clk 0:01:18]} 21. Nf5 {[%clk 0:00:26]}  Qe6 {[%clk 0:01:15]} 22. Nxd6 {[%clk 0:00:23]}  Qxh3 {[%clk 0:00:42]} 23. gxh3 {[%clk 0:00:24]}  Nf3+ {[%clk 0:00:40]} 24. Kh1 {[%clk 0:00:24]}  Rxd6 {[%clk 0:00:30]} 25. Bb3 {[%clk 0:00:20]} 0-1


[Site "https://www.chess.com"]